[Event "Championnat d'Europe de Blitz"]
[Date "2024.12.09"]
[White "Danov, Lyubomir"]
[Black "Fridman, Daniel"]
[WhiteElo "2297"]
[BlackElo "2571"]
[Round "5.23"]
[Result "1/2-1/2"]
[TimeControl "180+2"]

1. e4 {[%clk 00:03:03]} e6 {[%clk 00:03:02]} 2. d3 {[%emt 00:00:06] [%clk
00:02:59]} c5 {[%emt 00:00:01] [%clk 00:03:03]} 3. Nf3 {[%emt 00:00:02] [%clk
00:02:59]} Nc6 {[%emt 00:00:01] [%clk 00:03:04]} 4. g3 {[%clk 00:03:00]} g6
{[%clk 00:03:05]} 5. d4 {[%emt 00:00:06] [%clk 00:02:57]} cxd4 {[%emt 00:00:04]
[%clk 00:03:02]} 6. Nxd4 {[%emt 00:00:01] [%clk 00:02:58]} Bg7 {[%emt 00:00:37]
[%clk 00:02:28]} 7. Nb3 {[%emt 00:00:44] [%clk 00:02:16]} d5 {[%emt 00:00:09]
[%clk 00:02:21]} 8. exd5 {[%emt 00:00:04] [%clk 00:02:14]} exd5 {[%emt 00:00:01]
[%clk 00:02:21]} 9. Bg2 {[%emt 00:00:04] [%clk 00:02:12]} Qe7+ {[%emt 00:00:01]
[%clk 00:02:22]} 10. Qe2 {[%emt 00:00:12] [%clk 00:02:02]} Qxe2+ {[%emt
00:00:09] [%clk 00:02:15]} 11. Kxe2 {[%emt 00:00:02] [%clk 00:02:03]} Bg4+
{[%emt 00:00:12] [%clk 00:02:05]} 12. f3 {[%emt 00:00:05] [%clk 00:02:00]} Bf5
{[%emt 00:00:03] [%clk 00:02:04]} 13. c3 {[%emt 00:00:02] [%clk 00:02:00]} O-O-O
{[%emt 00:00:03] [%clk 00:02:03]} 14. Na3 {[%emt 00:00:09] [%clk 00:01:52]} d4
{[%emt 00:00:19] [%clk 00:01:47]} 15. cxd4 {[%emt 00:00:02] [%clk 00:01:52]}
Nxd4+ {[%emt 00:00:02] [%clk 00:01:47]} 16. Nxd4 {[%emt 00:00:02] [%clk
00:01:52]} Bxd4 {[%emt 00:00:04] [%clk 00:01:44]} 17. Nb5 {[%emt 00:00:20] [%clk
00:01:35]} Bc5 {[%emt 00:00:48] [%clk 00:00:58]} 18. Rd1 {[%emt 00:00:07] [%clk
00:01:29]} Rxd1 {[%emt 00:00:03] [%clk 00:00:58]} 19. Kxd1 {[%emt 00:00:01]
[%clk 00:01:30]} Ne7 {[%emt 00:00:10] [%clk 00:00:50]} 20. Bf4 {[%emt 00:00:07]
[%clk 00:01:24]} Rd8+ {[%emt 00:00:15] [%clk 00:00:38]} 21. Ke1 {[%emt 00:00:02]
[%clk 00:01:24]} Nc6 {[%emt 00:00:10] [%clk 00:00:31]} 22. Rc1 {[%emt 00:00:07]
[%clk 00:01:18]} b6 {[%emt 00:00:12] [%clk 00:00:21]} 23. Nd6+ {[%emt 00:00:14]
[%clk 00:01:05]} Kd7 {[%emt 00:00:10] [%clk 00:00:14]} 24. Nxf5 {[%emt 00:00:04]
[%clk 00:01:03]} gxf5 {[%emt 00:00:01] [%clk 00:00:15]} 25. Rd1+ {[%emt
00:00:05] [%clk 00:01:00]} Ke8 {[%emt 00:00:02] [%clk 00:00:15]} 26. Rxd8+
{[%emt 00:00:01] [%clk 00:01:00]} Kxd8 {[%emt 00:00:01] [%clk 00:00:16]} 27. a3
{[%emt 00:00:20] [%clk 00:00:43]} a5 {[%clk 00:00:18]} 28. Bd2 {[%emt 00:00:07]
[%clk 00:00:38]} Bd4 {[%emt 00:00:01] [%clk 00:00:19]} 29. b4 {[%emt 00:00:05]
[%clk 00:00:35]} Bb2 {[%emt 00:00:02] [%clk 00:00:19]} 30. bxa5 {[%emt 00:00:01]
[%clk 00:00:35]} Nxa5 {[%emt 00:00:02] [%clk 00:00:20]} 31. a4 {[%emt 00:00:13]
[%clk 00:00:24]} Nc4 {[%emt 00:00:01] [%clk 00:00:20]} 32. Bb4 {[%emt 00:00:01]
[%clk 00:00:24]} Ne3 {[%emt 00:00:03] [%clk 00:00:20]} 33. Kf2 {[%emt 00:00:05]
[%clk 00:00:21]} Bd4 {[%emt 00:00:01] [%clk 00:00:21]} 34. Bd2 {[%emt 00:00:03]
[%clk 00:00:20]} Nc4+ {[%emt 00:00:07] [%clk 00:00:16]} 35. Ke2 {[%clk
00:00:21]} Bg1 {[%emt 00:00:04] [%clk 00:00:15]} 36. Bh3 {[%emt 00:00:03] [%clk
00:00:20]} Nxd2 {[%emt 00:00:02] [%clk 00:00:14]} 37. Kxd2 {[%emt 00:00:02]
[%clk 00:00:20]} f4 {[%emt 00:00:01] [%clk 00:00:15]} 38. gxf4 {[%emt 00:00:04]
[%clk 00:00:19]} Bxh2 {[%emt 00:00:01] [%clk 00:00:16]} 39. Ke3 {[%emt 00:00:02]
[%clk 00:00:19]} Ke7 {[%emt 00:00:01] [%clk 00:00:17]} 40. Ke4 {[%emt 00:00:02]
[%clk 00:00:19]} Kf6 {[%emt 00:00:01] [%clk 00:00:18]} 41. Bg4 {[%emt 00:00:02]
[%clk 00:00:19]} Bg3 {[%emt 00:00:02] [%clk 00:00:18]} 42. Bh3 {[%emt 00:00:01]
[%clk 00:00:19]} Be1 {[%emt 00:00:01] [%clk 00:00:19]} 43. Bg4 {[%emt 00:00:02]
[%clk 00:00:20]} Bd2 {[%emt 00:00:01] [%clk 00:00:20]} 44. Bh3 {[%emt 00:00:01]
[%clk 00:00:21]} Bc1 {[%emt 00:00:02] [%clk 00:00:20]} 45. Bg4 {[%emt 00:00:01]
[%clk 00:00:21]} Kg6 {[%clk 00:00:22]} 46. Bf5+ {[%emt 00:00:03] [%clk
00:00:21]} Kh6 {[%emt 00:00:01] [%clk 00:00:22]} 47. Ke5 {[%emt 00:00:02] [%clk
00:00:22]} Kg7 {[%emt 00:00:01] [%clk 00:00:23]} 48. Ke4 {[%emt 00:00:02] [%clk
00:00:22]} h5 {[%emt 00:00:06] [%clk 00:00:18]} 49. Bh3 {[%emt 00:00:01] [%clk
00:00:23]} Kf6 {[%emt 00:00:01] [%clk 00:00:19]} 50. Bf5 {[%emt 00:00:01] [%clk
00:00:24]} Ke7 {[%emt 00:00:01] [%clk 00:00:20]} 51. Bh3 {[%emt 00:00:01] [%clk
00:00:24]} Bb2 {[%emt 00:00:02] [%clk 00:00:21]} 52. Kf5 {[%emt 00:00:02] [%clk
00:00:23]} Bf6 {[%emt 00:00:02] [%clk 00:00:21]} 53. Bf1 {[%emt 00:00:02] [%clk
00:00:24]} Bh4 {[%clk 00:00:23]} 54. Bc4 {[%emt 00:00:02] [%clk 00:00:24]} Kf8
{[%emt 00:00:02] [%clk 00:00:23]} 55. Bb3 {[%clk 00:00:24]} Kg7 {[%emt 00:00:01]
[%clk 00:00:24]} 56. Bc4 {[%emt 00:00:02] [%clk 00:00:25]} Bd8 {[%emt 00:00:03]
[%clk 00:00:23]} 57. Bf1 {[%emt 00:00:01] [%clk 00:00:26]} h4 {[%emt 00:00:06]
[%clk 00:00:20]} 58. Kg4 {[%clk 00:00:27]} Be7 {[%emt 00:00:03] [%clk 00:00:19]}
59. Bc4 {[%emt 00:00:01] [%clk 00:00:27]} f5+ {[%emt 00:00:03] [%clk 00:00:18]}
60. Kh3 {[%emt 00:00:03] [%clk 00:00:27]} Kg6 {[%emt 00:00:03] [%clk 00:00:17]}
61. Bd3 {[%emt 00:00:02] [%clk 00:00:27]} Bf6 {[%emt 00:00:02] [%clk 00:00:17]}
62. Bc2 {[%emt 00:00:01] [%clk 00:00:28]} 1/2-1/2

[Site "Europe Echecs"]

[Event "Championnat d'Europe de Blitz"]
[Date "2024.12.09"]
[White "Dobrikov, Marco"]
[Black "Djukic, Nikola"]
[WhiteElo "2407"]
[BlackElo "2493"]
[Round "5.24"]
[Result "0-1"]
[TimeControl "180+2"]

1. Nf3 {[%emt 00:05:07] [%clk 00:03:03]} c5 {[%emt 00:00:02] [%clk 00:03:02]} 2.
e4 {[%clk 00:03:04]} e6 {[%emt 00:00:04] [%clk 00:03:00]} 3. d4 {[%emt 00:00:01]
[%clk 00:03:05]} cxd4 {[%emt 00:00:04]} 4. Nxd4 {[%clk 00:03:04]} Nc6 {[%emt
00:00:01] [%clk 00:03:01]} 5. Nc3 {[%emt 00:00:07] [%clk 00:02:58]} Qc7 {[%emt
00:00:01] [%clk 00:03:02]} 6. Be3 {[%emt 00:00:12] [%clk 00:02:48]} a6 {[%clk
00:03:04]} 7. Bd3 {[%emt 00:00:36] [%clk 00:02:14]} Nf6 {[%emt 00:00:07] [%clk
00:02:59]} 8. O-O {[%emt 00:00:07] [%clk 00:02:09]} Ne5 {[%emt 00:00:02] [%clk
00:02:59]} 9. h3 {[%emt 00:00:34] [%clk 00:01:37]} Bc5 {[%emt 00:00:01] [%clk
00:03:00]} 10. Be2 {[%emt 00:00:04] [%clk 00:01:35]} d6 {[%emt 00:00:06] [%clk
00:02:56]} 11. Qd2 {[%emt 00:00:05] [%clk 00:01:32]} O-O {[%emt 00:00:30] [%clk
00:02:28]} 12. f4 {[%emt 00:00:03] [%clk 00:01:31]} Ng6 {[%emt 00:00:09] [%clk
00:02:21]} 13. Nb3 {[%emt 00:00:09] [%clk 00:01:24]} Bxe3+ {[%emt 00:00:02]
[%clk 00:02:21]} 14. Qxe3 {[%emt 00:00:02] [%clk 00:01:24]} b5 {[%emt 00:00:08]
[%clk 00:02:15]} 15. a3 {[%emt 00:00:03] [%clk 00:01:24]} Bb7 {[%emt 00:00:04]
[%clk 00:02:13]} 16. Rad1 {[%emt 00:00:01] [%clk 00:01:24]} Rac8 {[%emt
00:00:13] [%clk 00:02:02]} 17. Rd2 {[%emt 00:00:02] [%clk 00:01:25]} e5 {[%emt
00:00:05] [%clk 00:02:00]} 18. f5 {[%emt 00:00:19] [%clk 00:01:07]} Ne7 {[%emt
00:00:14] [%clk 00:01:48]} 19. Bf3 {[%emt 00:00:17] [%clk 00:00:52]} d5 {[%emt
00:00:10] [%clk 00:01:40]} 20. exd5 {[%emt 00:00:09] [%clk 00:00:45]} Nxf5
{[%emt 00:00:02] [%clk 00:01:40]} 21. Qg5 {[%emt 00:00:02] [%clk 00:00:44]} Qb6+
{[%emt 00:00:15] [%clk 00:01:28]} 22. Kh2 {[%emt 00:00:03] [%clk 00:00:42]} Nd6
{[%emt 00:00:02] [%clk 00:01:29]} 23. Re2 {[%emt 00:00:14] [%clk 00:00:30]} Nc4
{[%emt 00:00:12] [%clk 00:01:18]} 24. Ne4 {[%emt 00:00:11] [%clk 00:00:21]} Nxd5
{[%emt 00:00:16] [%clk 00:01:05]} 25. Ng3 {[%emt 00:00:06] [%clk 00:00:17]} h6
{[%emt 00:00:20] [%clk 00:00:47]} 26. Qh4 {[%emt 00:00:06] [%clk 00:00:13]} Nf4
{[%emt 00:00:02] [%clk 00:00:47]} 27. Ref2 {[%emt 00:00:01] [%clk 00:00:14]} Ne3
{[%emt 00:00:13] [%clk 00:00:36]} 28. Re1 {[%emt 00:00:02] [%clk 00:00:13]} Bxf3
{[%emt 00:00:06] [%clk 00:00:32]} 29. Rxf3 {[%emt 00:00:01] [%clk 00:00:14]}
Nexg2 {[%emt 00:00:02] [%clk 00:00:33]} 30. Qg4 {[%emt 00:00:01] [%clk
00:00:15]} Nxe1 {[%emt 00:00:03] [%clk 00:00:32]} 31. Nf5 {[%emt 00:00:01] [%clk
00:00:16]} Nxf3+ {[%emt 00:00:01] [%clk 00:00:33]} 32. Kh1 {[%emt 00:00:05]
[%clk 00:00:13]} Qf6 {[%emt 00:00:07] [%clk 00:00:28]} 0-1

[Site "Europe Echecs"]

[Event "Championnat d'Europe de Blitz"]
[Date "2024.12.09"]
[White "Mastrovasilis, Dimitrios"]
[Black "Stanojoski, Zvonko"]
[WhiteElo "2537"]
[BlackElo "2401"]
[Round "5.25"]
[Result "1/2-1/2"]
[TimeControl "180+2"]

1. e4 {[%clk 00:03:02]} c5 {[%emt 00:00:03] [%clk 00:03:02]} 2. Nf3 {[%emt
00:00:01] [%clk 00:03:02]} Nc6 {[%emt 00:00:01] [%clk 00:03:03]} 3. Bb5 {[%emt
00:00:02] [%clk 00:03:03]} Nf6 {[%emt 00:00:01] [%clk 00:03:04]} 4. Bxc6 {[%emt
00:00:07] [%clk 00:02:57]} dxc6 {[%clk 00:03:05]} 5. d3 {[%emt 00:00:01] [%clk
00:02:58]} g6 {[%emt 00:00:02] [%clk 00:03:05]} 6. Bf4 {[%emt 00:00:03] [%clk
00:02:56]} Bg7 {[%emt 00:00:06] [%clk 00:03:01]} 7. Nc3 {[%emt 00:00:04] [%clk
00:02:54]} Bg4 {[%emt 00:00:12] [%clk 00:02:51]} 8. h3 {[%emt 00:00:04] [%clk
00:02:54]} Bxf3 {[%clk 00:02:51]} 9. Qxf3 {[%emt 00:00:02] [%clk 00:02:54]} Nd7
{[%emt 00:00:03] [%clk 00:02:50]} 10. O-O {[%emt 00:00:07] [%clk 00:02:49]} O-O
{[%emt 00:00:02] [%clk 00:02:49]} 11. Qe3 {[%emt 00:00:06] [%clk 00:02:45]} Re8
{[%emt 00:00:12] [%clk 00:02:40]} 12. Kh1 {[%emt 00:00:06] [%clk 00:02:41]} b6
{[%emt 00:00:02] [%clk 00:02:40]} 13. Rae1 {[%emt 00:00:06] [%clk 00:02:36]} Nf8
{[%emt 00:00:02] [%clk 00:02:40]} 14. Bh6 {[%emt 00:00:01] [%clk 00:02:37]} Bh8
{[%emt 00:00:05] [%clk 00:02:38]} 15. Bxf8 {[%emt 00:00:09] [%clk 00:02:30]}
Rxf8 {[%emt 00:00:03] [%clk 00:02:37]} 16. e5 {[%emt 00:00:03] [%clk 00:02:29]}
Qd4 {[%emt 00:00:13] [%clk 00:02:26]} 17. Qg3 {[%emt 00:00:02] [%clk 00:02:29]}
f6 {[%emt 00:00:15] [%clk 00:02:13]} 18. exf6 {[%emt 00:00:21] [%clk 00:02:09]}
Bxf6 {[%emt 00:00:02] [%clk 00:02:13]} 19. Re4 {[%emt 00:00:16] [%clk 00:01:56]}
Qd7 {[%emt 00:00:22] [%clk 00:01:54]} 20. Nd1 {[%emt 00:00:01] [%clk 00:01:56]}
Rf7 {[%emt 00:00:06] [%clk 00:01:50]} 21. b3 {[%emt 00:00:03] [%clk 00:01:55]}
Raf8 {[%emt 00:00:02] [%clk 00:01:50]} 22. f3 {[%emt 00:00:20] [%clk 00:01:37]}
Bd4 {[%emt 00:00:03] [%clk 00:01:49]} 23. Ne3 {[%emt 00:00:06] [%clk 00:01:33]}
Bxe3 {[%emt 00:00:02] [%clk 00:01:49]} 24. Rxe3 {[%emt 00:00:01] [%clk
00:01:34]} Qd4 {[%emt 00:00:07] [%clk 00:01:44]} 25. Rfe1 {[%emt 00:00:02] [%clk
00:01:34]} Qb2 {[%emt 00:00:02] [%clk 00:01:44]} 26. Qf2 {[%emt 00:00:19] [%clk
00:01:16]} Qxa2 {[%emt 00:00:08] [%clk 00:01:38]} 27. Rxe7 {[%emt 00:00:02]
[%clk 00:01:17]} Qb2 {[%emt 00:00:05] [%clk 00:01:35]} 28. Rxf7 {[%emt 00:00:07]
[%clk 00:01:12]} Rxf7 {[%emt 00:00:01] [%clk 00:01:36]} 29. Re4 {[%emt 00:00:04]
[%clk 00:01:10]} Kg7 {[%emt 00:00:13] [%clk 00:01:25]} 30. Kh2 {[%emt 00:00:04]
[%clk 00:01:07]} Qc3 {[%emt 00:00:15] [%clk 00:01:13]} 31. h4 {[%emt 00:00:07]
[%clk 00:01:03]} a5 {[%emt 00:00:09] [%clk 00:01:06]} 32. h5 {[%emt 00:00:04]
[%clk 00:01:00]} Qf6 {[%emt 00:00:06] [%clk 00:01:02]} 33. Qg3 {[%emt 00:00:07]
[%clk 00:00:55]} Re7 {[%emt 00:00:11] [%clk 00:00:52]} 34. Qh3 {[%emt 00:00:25]
[%clk 00:00:33]} Rxe4 {[%emt 00:00:07] [%clk 00:00:47]} 35. h6+ {[%clk
00:00:34]} Kf7 {[%emt 00:00:08] [%clk 00:00:41]} 36. dxe4 {[%clk 00:00:35]} Qd6+
{[%emt 00:00:06] [%clk 00:00:37]} 37. Kh1 {[%emt 00:00:09] [%clk 00:00:28]} Qd1+
{[%emt 00:00:01] [%clk 00:00:37]} 38. Kh2 {[%emt 00:00:03]} Qd6+ {[%clk
00:00:38]} 39. Kh1 {[%emt 00:00:04] [%clk 00:00:27]} Qd1+ {[%emt 00:00:01] [%clk
00:00:39]} 40. Kh2 {[%emt 00:00:01] [%clk 00:00:27]} Qd6+ {[%emt 00:00:01] [%clk
00:00:40]} 1/2-1/2

[Site "Europe Echecs"]

[Event "Championnat d'Europe de Blitz"]
[Date "2024.12.09"]
[White "Domalchuk-Jonasson, Aleksandr"]
[Black "Smeets, Jan"]
[WhiteElo "2377"]
[BlackElo "2552"]
[Round "5.26"]
[Result "0-1"]
[TimeControl "180+2"]

1. c4 {[%emt 00:17:46] [%clk 00:03:02]} e6 {[%emt 00:00:05] [%clk 00:02:59]} 2.
d4 {[%emt 00:00:02] [%clk 00:03:02]} d5 {[%emt 00:00:01] [%clk 00:03:00]} 3. Nf3
{[%emt 00:00:01] [%clk 00:03:02]} a6 {[%emt 00:00:01] [%clk 00:03:02]} 4. Bg5
{[%emt 00:00:14] [%clk 00:02:51]} Be7 {[%emt 00:00:03] [%clk 00:03:01]} 5. Bxe7
{[%emt 00:00:01] [%clk 00:02:51]} Nxe7 {[%emt 00:00:02] [%clk 00:03:01]} 6. g3
{[%emt 00:00:04] [%clk 00:02:48]} dxc4 {[%emt 00:00:12] [%clk 00:02:52]} 7. Bg2
{[%emt 00:00:02] [%clk 00:02:48]} b5 {[%emt 00:00:03] [%clk 00:02:51]} 8. a4
{[%emt 00:00:11] [%clk 00:02:39]} Bb7 {[%emt 00:00:03] [%clk 00:02:50]} 9. O-O
{[%emt 00:00:04] [%clk 00:02:37]} Nd7 {[%emt 00:00:24] [%clk 00:02:28]} 10. b3
{[%emt 00:00:07] [%clk 00:02:32]} cxb3 {[%emt 00:00:16] [%clk 00:02:14]} 11.
Qxb3 {[%emt 00:00:01] [%clk 00:02:33]} Bd5 {[%clk 00:02:15]} 12. Qb2 {[%emt
00:00:20] [%clk 00:02:15]} Rb8 {[%emt 00:00:27] [%clk 00:01:50]} 13. Nbd2 {[%emt
00:00:11] [%clk 00:02:05]} O-O {[%emt 00:00:28] [%clk 00:01:25]} 14. Rfc1 {[%emt
00:00:01] [%clk 00:02:06]} Nf6 {[%emt 00:00:17] [%clk 00:01:11]} 15. Qc2 {[%emt
00:00:16] [%clk 00:01:52]} b4 {[%emt 00:00:21] [%clk 00:00:52]} 16. a5 {[%emt
00:00:12] [%clk 00:01:41]} b3 {[%emt 00:00:13] [%clk 00:00:42]} 17. Qb2 {[%clk
00:01:42]} Nc6 {[%emt 00:00:11] [%clk 00:00:33]} 18. Ra3 {[%emt 00:00:56] [%clk
00:00:48]} Rb4 {[%emt 00:00:03] [%clk 00:00:32]} 19. e3 {[%emt 00:00:07] [%clk
00:00:43]} Qa8 {[%emt 00:00:06] [%clk 00:00:28]} 20. Ne1 {[%emt 00:00:10] [%clk
00:00:35]} Bxg2 {[%emt 00:00:02] [%clk 00:00:28]} 21. Nxg2 {[%emt 00:00:01]
[%clk 00:00:36]} Rfb8 {[%emt 00:00:06] [%clk 00:00:24]} 22. Nf4 {[%emt 00:00:02]
[%clk 00:00:36]} R4b5 {[%emt 00:00:05] [%clk 00:00:21]} 23. Rxb3 {[%emt
00:00:08] [%clk 00:00:30]} Rxb3 {[%emt 00:00:02] [%clk 00:00:21]} 24. Nxb3
{[%clk 00:00:31]} Nxa5 {[%emt 00:00:01] [%clk 00:00:22]} 25. Rc3 {[%emt
00:00:06] [%clk 00:00:27]} Qb7 {[%emt 00:00:03] [%clk 00:00:22]} 26. Nd3 {[%emt
00:00:09] [%clk 00:00:20]} Nxb3 {[%emt 00:00:02] [%clk 00:00:21]} 27. Qa2 {[%emt
00:00:07] [%clk 00:00:14]} h6 {[%emt 00:00:05] [%clk 00:00:19]} 28. h3 {[%emt
00:00:01] [%clk 00:00:15]} a5 {[%emt 00:00:03] [%clk 00:00:19]} 29. Ne5 {[%emt
00:00:06] [%clk 00:00:11]} Ne4 {[%emt 00:00:02] [%clk 00:00:18]} 30. Rc2 {[%emt
00:00:07] [%clk 00:00:06]} Ng5 {[%emt 00:00:07] [%clk 00:00:13]} 31. Nc6 {[%emt
00:00:02] [%clk 00:00:06]} Ra8 {[%emt 00:00:03] [%clk 00:00:13]} 32. Rc3 {[%emt
00:00:02] [%clk 00:00:05]} a4 {[%emt 00:00:01] [%clk 00:00:14]} 33. h4 {[%emt
00:00:01] [%clk 00:00:06]} Ne4 {[%emt 00:00:02] [%clk 00:00:14]} 34. Rc4 {[%emt
00:00:01] [%clk 00:00:07]} Nd6 {[%emt 00:00:02] [%clk 00:00:14]} 35. Rxa4 {[%emt
00:00:02] [%clk 00:00:07]} Rxa4 {[%emt 00:00:03] [%clk 00:00:14]} 36. Qxa4
{[%clk 00:00:08]} Nd2 {[%clk 00:00:15]} 37. Ne7+ {[%emt 00:00:04] [%clk
00:00:06]} Kf8 {[%emt 00:00:02] [%clk 00:00:15]} 38. Qd7 {[%emt 00:00:03] [%clk
00:00:05]} Qb1+ {[%emt 00:00:06] [%clk 00:00:11]} 39. Kh2 {[%emt 00:00:01] [%clk
00:00:06]} Nf3+ {[%emt 00:00:02] [%clk 00:00:10]} 40. Kg2 {[%emt 00:00:01] [%clk
00:00:07]} Qe4 {[%emt 00:00:03] [%clk 00:00:10]} 41. Qc6 {[%emt 00:00:05] [%clk
00:00:05]} Nxh4+ {[%emt 00:00:03] [%clk 00:00:09]} 42. Kh3 {[%emt 00:00:01]
[%clk 00:00:05]} Qxc6 {[%emt 00:00:02] [%clk 00:00:09]} 43. Nxc6 {[%emt
00:00:01] [%clk 00:00:06]} Nf3 {[%emt 00:00:01] [%clk 00:00:10]} 44. Kg4 {[%clk
00:00:07]} Nd2 {[%emt 00:00:01] [%clk 00:00:12]} 45. Kf4 {[%emt 00:00:02] [%clk
00:00:06]} N2c4 {[%emt 00:00:04] [%clk 00:00:10]} 46. e4 {[%emt 00:00:02] [%clk
00:00:05]} g5+ {[%emt 00:00:02] [%clk 00:00:11]} 47. Kf3 {[%emt 00:00:01] [%clk
00:00:06]} Nd2+ {[%emt 00:00:02] [%clk 00:00:11]} 48. Kg4 {[%emt 00:00:01] [%clk
00:00:07]} N2xe4 {[%emt 00:00:02] [%clk 00:00:12]} 49. Kh5 {[%emt 00:00:01]
[%clk 00:00:07]} Kg7 {[%clk 00:00:13]} 50. Ne5 {[%emt 00:00:05] [%clk 00:00:04]}
Nf6# {[%clk 00:00:14]} 0-1

[Site "Europe Echecs"]

[Event "Championnat d'Europe de Blitz"]
[Date "2024.12.09"]
[White "Baidetskyi, Valentin"]
[Black "Diermair, Andreas"]
[WhiteElo "2519"]
[BlackElo "2433"]
[Round "5.27"]
[Result "1-0"]
[TimeControl "180+2"]

1. e4 {[%emt 00:00:02] [%clk 00:03:02]} e6 {[%clk 00:03:03]} 2. d4 {[%emt
00:00:01] [%clk 00:03:03]} d5 {[%clk 00:03:04]} 3. e5 {[%emt 00:00:01] [%clk
00:03:04]} c5 {[%clk 00:03:05]} 4. c3 {[%emt 00:00:01] [%clk 00:03:05]} Nc6
{[%clk 00:03:07]} 5. Nf3 {[%clk 00:03:06]} Bd7 {[%emt 00:00:02] [%clk 00:03:07]}
6. Be2 {[%emt 00:00:01] [%clk 00:03:07]} f6 {[%emt 00:00:03] [%clk 00:03:06]} 7.
O-O {[%emt 00:00:02] [%clk 00:03:07]} fxe5 {[%emt 00:00:02] [%clk 00:03:06]} 8.
Nxe5 {[%emt 00:00:02] [%clk 00:03:07]} Nxe5 {[%emt 00:00:01] [%clk 00:03:07]} 9.
dxe5 {[%emt 00:00:01] [%clk 00:03:08]} Qc7 {[%emt 00:00:01] [%clk 00:03:07]} 10.
Re1 {[%clk 00:03:09]} O-O-O {[%emt 00:00:06] [%clk 00:03:03]} 11. Bf1 {[%emt
00:00:24] [%clk 00:02:47]} Kb8 {[%emt 00:00:01] [%clk 00:03:04]} 12. a4 {[%emt
00:00:03] [%clk 00:02:47]} c4 {[%emt 00:00:20] [%clk 00:02:46]} 13. Be3 {[%emt
00:00:08] [%clk 00:02:40]} Bc5 {[%emt 00:00:02] [%clk 00:02:45]} 14. Na3 {[%emt
00:00:05] [%clk 00:02:37]} Ne7 {[%emt 00:00:05] [%clk 00:02:42]} 15. Nc2 {[%emt
00:00:26] [%clk 00:02:13]} Bxe3 {[%emt 00:00:02] [%clk 00:02:42]} 16. Rxe3
{[%emt 00:00:17] [%clk 00:01:58]} Nc6 {[%emt 00:00:02] [%clk 00:02:41]} 17. Nd4
{[%emt 00:00:10] [%clk 00:01:50]} Na5 {[%emt 00:00:31] [%clk 00:02:12]} 18. Qg4
{[%emt 00:00:10] [%clk 00:01:42]} Rhg8 {[%emt 00:00:36] [%clk 00:01:39]} 19.
Rae1 {[%emt 00:00:32] [%clk 00:01:12]} a6 {[%emt 00:00:11] [%clk 00:01:30]} 20.
Rf3 {[%emt 00:00:06] [%clk 00:01:07]} Bc8 {[%emt 00:00:10] [%clk 00:01:22]} 21.
Qh5 {[%emt 00:00:14] [%clk 00:00:55]} Rdf8 {[%emt 00:00:14] [%clk 00:01:10]} 22.
Rxf8 {[%emt 00:00:17] [%clk 00:00:40]} Rxf8 {[%clk 00:01:11]} 23. Qxh7 {[%emt
00:00:01] [%clk 00:00:40]} Nc6 {[%emt 00:00:02] [%clk 00:01:12]} 24. Nxc6+
{[%emt 00:00:13] [%clk 00:00:29]} bxc6 {[%emt 00:00:15]} 25. Re3 {[%clk
00:00:28]} Qb7 {[%emt 00:00:08] [%clk 00:00:56]} 26. Re2 {[%emt 00:00:19] [%clk
00:00:11]} c5 {[%emt 00:00:03] [%clk 00:00:55]} 27. Qh4 {[%emt 00:00:07] [%clk
00:00:06]} Qf7 {[%emt 00:00:07] [%clk 00:00:51]} 28. g3 {[%emt 00:00:03] [%clk
00:00:05]} Bb7 {[%emt 00:00:09] [%clk 00:00:43]} 29. Bg2 {[%emt 00:00:01] [%clk
00:00:05]} Qf5 {[%emt 00:00:03] [%clk 00:00:43]} 30. Qe7 {[%emt 00:00:03] [%clk
00:00:04]} Qb1+ {[%clk 00:00:44]} 31. Bf1 {[%clk 00:00:06]} Qf5 {[%emt 00:00:03]
[%clk 00:00:43]} 32. Qd6+ {[%emt 00:00:04] [%clk 00:00:03]} 1-0

[Site "Europe Echecs"]